[Event "*** Titled Tuesday Blitz"]
[Site "Chess.com"]
[Date "2020.12.29"]
[Round "1"]
[White "Jadeit90"]
[Black "swisspower96"]
[Result "1/2-1/2"]
[WhiteElo "2357"]
[BlackElo "2659"]
[TimeControl "180+1"]
[EndTime "10:08:02 PST"]
[Termination "Game drawn by repetition"]

1. e4 {[%clk 0:02:56.7]} 1... c5 {[%clk 0:02:59]} 2. Nc3 {[%clk 0:02:55.6]} 2...
Nc6 {[%clk 0:02:55.8]} 3. g3 {[%clk 0:02:56.1]} 3... g6 {[%clk 0:02:55.4]} 4.
Bg2 {[%clk 0:02:56.7]} 4... Bg7 {[%clk 0:02:56.1]} 5. d3 {[%clk 0:02:57.2]} 5...
d6 {[%clk 0:02:56.4]} 6. Be3 {[%clk 0:02:57.8]} 6... Nf6 {[%clk 0:02:55.2]} 7.
Nge2 {[%clk 0:02:56.9]} 7... O-O {[%clk 0:02:53.9]} 8. O-O {[%clk 0:02:56.9]}
8... Rb8 {[%clk 0:02:52.7]} 9. a4 {[%clk 0:02:56.2]} 9... a6 {[%clk 0:02:52]}
10. h3 {[%clk 0:02:56.4]} 10... e5 {[%clk 0:02:35.7]} 11. f4 {[%clk 0:02:55.8]}
11... Nd4 {[%clk 0:02:33.6]} 12. g4 {[%clk 0:02:55]} 12... b5 {[%clk 0:02:29.4]}
13. axb5 {[%clk 0:02:54.1]} 13... axb5 {[%clk 0:02:29.4]} 14. f5 {[%clk
0:02:48.1]} 14... b4 {[%clk 0:02:06.8]} 15. Nb1 {[%clk 0:02:47.8]} 15... Ne8
{[%clk 0:01:56.4]} 16. Nd2 {[%clk 0:02:21.4]} 16... Nc7 {[%clk 0:01:40.2]} 17.
Nc4 {[%clk 0:02:16.1]} 17... d5 {[%clk 0:01:33.2]} 18. Nd2 {[%clk 0:02:04.5]}
18... dxe4 {[%clk 0:01:18.8]} 19. dxe4 {[%clk 0:02:04.6]} 19... Ba6 {[%clk
0:01:13.4]} 20. Bxd4 {[%clk 0:01:53.2]} 20... cxd4 {[%clk 0:01:01.1]} 21. Nf3
{[%clk 0:01:36.3]} 21... b3 {[%clk 0:01:01.2]} 22. cxb3 {[%clk 0:01:33.9]} 22...
Re8 {[%clk 0:00:52.7]} 23. g5 {[%clk 0:01:30.5]} 23... gxf5 {[%clk 0:00:50]} 24.
exf5 {[%clk 0:01:30.2]} 24... d3 {[%clk 0:00:50.5]} 25. Nc3 {[%clk 0:01:29.9]}
25... e4 {[%clk 0:00:50.8]} 26. f6 {[%clk 0:01:12.5]} 26... exf3 {[%clk
0:00:45]} 27. Qxf3 {[%clk 0:01:13.4]} 27... Bf8 {[%clk 0:00:41.2]} 28. Rad1
{[%clk 0:01:07.2]} 28... Qd4+ {[%clk 0:00:38.9]} 29. Kh1 {[%clk 0:01:06.7]}
29... Rbd8 {[%clk 0:00:38.8]} 30. Qc6 {[%clk 0:00:54]} 30... d2 {[%clk
0:00:22.5]} 31. Qxc7 {[%clk 0:00:50.4]} 31... Bxf1 {[%clk 0:00:22.2]} 32. Rxf1
{[%clk 0:00:45.6]} 32... Bd6 {[%clk 0:00:22.4]} 33. Qc6 {[%clk 0:00:36.1]} 33...
Qe5 {[%clk 0:00:20.7]} 34. Kg1 {[%clk 0:00:31.5]} 34... Qh2+ {[%clk 0:00:20.3]}
35. Kf2 {[%clk 0:00:31.8]} 35... Qg3+ {[%clk 0:00:20.5]} 36. Kg1 {[%clk
0:00:32.1]} 36... Re1 {[%clk 0:00:18.2]} 37. Qf3 {[%clk 0:00:22.3]} 37... Qxg5
{[%clk 0:00:17]} 38. Ne4 {[%clk 0:00:18.2]} 38... Qe5 {[%clk 0:00:14.9]} 39.
Qg4+ {[%clk 0:00:16.7]} 39... Kf8 {[%clk 0:00:15.4]} 40. Qg7+ {[%clk 0:00:13.7]}
40... Ke8 {[%clk 0:00:16]} 41. Qg8+ {[%clk 0:00:10.8]} 41... Kd7 {[%clk
0:00:16.5]} 42. Qxf7+ {[%clk 0:00:10.9]} 42... Kc8 {[%clk 0:00:17]} 43. Nxd6+
{[%clk 0:00:10.3]} 43... Rxd6 {[%clk 0:00:17.4]} 44. Qb7+ {[%clk 0:00:09.8]}
44... Kd8 {[%clk 0:00:17.8]} 45. Qb8+ {[%clk 0:00:09]} 45... Kd7 {[%clk
0:00:18.3]} 46. Qb7+ {[%clk 0:00:09.3]} 46... Ke6 {[%clk 0:00:18.2]} 47. Qc8+
{[%clk 0:00:09]} 47... Kf7 {[%clk 0:00:18]} 48. Qc7+ {[%clk 0:00:08.6]} 48...
Kg6 {[%clk 0:00:04.6]} 49. Qg7+ {[%clk 0:00:08.6]} 49... Kh5 {[%clk 0:00:05.2]}
50. Qxh7+ {[%clk 0:00:05.1]} 50... Kg5 {[%clk 0:00:05.7]} 51. Qg7+ {[%clk
0:00:05.5]} 51... Kh5 {[%clk 0:00:06.3]} 52. Qh7+ {[%clk 0:00:06]} 52... Kg5
{[%clk 0:00:06.8]} 53. Qg7+ {[%clk 0:00:06.5]} 53... Kh5 {[%clk 0:00:06.5]} 54.
Qh7+ {[%clk 0:00:07.1]} 1/2-1/2

[Event "*** Titled Tuesday Blitz"]
[Site "Chess.com"]
[Date "2020.12.29"]
[Round "1"]
[White "ChessQueen"]
[Black "Loy_Konstantin"]
[Result "1-0"]
[WhiteElo "2753"]
[BlackElo "2401"]
[TimeControl "180+1"]
[EndTime "10:08:03 PST"]
[Termination "ChessQueen won by resignation"]

1. e4 {[%clk 0:03:00.9]} 1... c5 {[%clk 0:02:59.5]} 2. c3 {[%clk 0:03:00.5]}
2... Nf6 {[%clk 0:02:59.1]} 3. e5 {[%clk 0:03:00.2]} 3... Nd5 {[%clk 0:02:59.4]}
4. Nf3 {[%clk 0:03:00.5]} 4... Nc6 {[%clk 0:02:58.7]} 5. Bc4 {[%clk 0:03:00.6]}
5... e6 {[%clk 0:02:58.5]} 6. d4 {[%clk 0:02:57.5]} 6... cxd4 {[%clk 0:02:58.4]}
7. cxd4 {[%clk 0:02:57.7]} 7... d6 {[%clk 0:02:57.5]} 8. O-O {[%clk 0:02:57.9]}
8... Be7 {[%clk 0:02:57.6]} 9. Qe2 {[%clk 0:02:57.7]} 9... O-O {[%clk 0:02:57]}
10. Rd1 {[%clk 0:02:57.1]} 10... Qc7 {[%clk 0:02:47]} 11. Bd2 {[%clk 0:02:55]}
11... dxe5 {[%clk 0:02:44.8]} 12. dxe5 {[%clk 0:02:53.5]} 12... Rd8 {[%clk
0:02:45.2]} 13. Nc3 {[%clk 0:02:51.3]} 13... Nxc3 {[%clk 0:02:42.8]} 14. Bxc3
{[%clk 0:02:51.4]} 14... b6 {[%clk 0:02:41.3]} 15. h4 {[%clk 0:02:40.7]} 15...
Bb7 {[%clk 0:02:37.8]} 16. Ng5 {[%clk 0:02:39.4]} 16... Rxd1+ {[%clk 0:02:03]}
17. Rxd1 {[%clk 0:02:38.6]} 17... Rd8 {[%clk 0:02:03.5]} 18. Bd3 {[%clk
0:01:48.2]} 18... Bxg5 {[%clk 0:01:44.6]} 19. hxg5 {[%clk 0:01:47.8]} 19... Ne7
{[%clk 0:01:37.9]} 20. Bb4 {[%clk 0:01:37.1]} 20... g6 {[%clk 0:01:31.2]} 21.
Bd6 {[%clk 0:01:33.9]} 21... Qd7 {[%clk 0:01:24.4]} 22. Bb5 {[%clk 0:01:23.7]}
22... Bc6 {[%clk 0:01:21.9]} 23. Bxc6 {[%clk 0:01:10.8]} 23... Nxc6 {[%clk
0:01:20.2]} 24. Rc1 {[%clk 0:01:08.9]} 24... Rc8 {[%clk 0:01:11.9]} 25. Qb5
{[%clk 0:01:06.8]} 25... Nb8 {[%clk 0:00:40.6]} 26. Rxc8+ {[%clk 0:00:57.5]}
26... Qxc8 {[%clk 0:00:41.5]} 27. Be7 {[%clk 0:00:51.7]} 27... Nd7 {[%clk
0:00:31.4]} 28. Bf6 {[%clk 0:00:47.1]} 28... Nxf6 {[%clk 0:00:27.1]} 29. exf6
{[%clk 0:00:46.8]} 29... h6 {[%clk 0:00:22.5]} 30. g3 {[%clk 0:00:40.2]} 30...
hxg5 {[%clk 0:00:15]} 31. Qxg5 {[%clk 0:00:39.3]} 31... Qd8 {[%clk 0:00:15.4]}
32. b3 {[%clk 0:00:34.9]} 32... Qd1+ {[%clk 0:00:14.8]} 33. Kg2 {[%clk
0:00:35.1]} 33... Qd5+ {[%clk 0:00:06.1]} 34. Qxd5 {[%clk 0:00:34.7]} 34... exd5
{[%clk 0:00:07]} 35. Kf3 {[%clk 0:00:34.7]} 35... Kh7 {[%clk 0:00:06.5]} 36. Kf4
{[%clk 0:00:33.5]} 36... Kh6 {[%clk 0:00:05.9]} 37. g4 {[%clk 0:00:32.5]} 37...
g5+ {[%clk 0:00:04.4]} 38. Ke5 {[%clk 0:00:30.3]} 38... Kg6 {[%clk 0:00:04.8]}
39. Kxd5 {[%clk 0:00:29.4]} 39... Kxf6 {[%clk 0:00:05.7]} 40. Kd6 {[%clk
0:00:28.1]} 40... Kg6 {[%clk 0:00:05]} 41. Ke5 {[%clk 0:00:28.4]} 41... f6+
{[%clk 0:00:04.6]} 42. Ke6 {[%clk 0:00:28.3]} 42... Kg7 {[%clk 0:00:04.8]} 43.
b4 {[%clk 0:00:25]} 43... Kg6 {[%clk 0:00:04.7]} 44. b5 {[%clk 0:00:25.5]} 44...
Kg7 {[%clk 0:00:04.5]} 45. Kd6 {[%clk 0:00:23.1]} 45... Kg6 {[%clk 0:00:04.3]}
46. Kc6 {[%clk 0:00:22.6]} 46... f5 {[%clk 0:00:04.5]} 47. Kb7 {[%clk
0:00:11.9]} 47... fxg4 {[%clk 0:00:02.4]} 48. Kxa7 {[%clk 0:00:12.3]} 48... Kf5
{[%clk 0:00:03.3]} 49. Kxb6 {[%clk 0:00:12.5]} 49... Kf4 {[%clk 0:00:04.2]} 50.
Kc6 {[%clk 0:00:11.5]} 50... Kf3 {[%clk 0:00:05.1]} 51. b6 {[%clk 0:00:12.1]}
51... Kxf2 {[%clk 0:00:06]} 52. b7 {[%clk 0:00:12.9]} 52... g3 {[%clk
0:00:06.9]} 53. b8=Q {[%clk 0:00:13.8]} 53... g2 {[%clk 0:00:07.8]} 54. Qb6+
{[%clk 0:00:13.8]} 54... Kf1 {[%clk 0:00:07.6]} 55. Qb1+ {[%clk 0:00:13.6]}
55... Kf2 {[%clk 0:00:07.9]} 56. Qf5+ {[%clk 0:00:13.8]} 56... Ke2 {[%clk
0:00:08.2]} 57. Qxg5 {[%clk 0:00:14.2]} 1-0

[Event "*** Titled Tuesday Blitz"]
[Site "Chess.com"]
[Date "2020.12.29"]
[Round "1"]
[White "skoularikii"]
[Black "Nemsko"]
[Result "1-0"]
[WhiteElo "2609"]
[BlackElo "2313"]
[TimeControl "180+1"]
[EndTime "10:08:09 PST"]
[Termination "skoularikii won on time"]

1. e4 {[%clk 0:03:00.9]} 1... e5 {[%clk 0:02:59.5]} 2. Nf3 {[%clk 0:02:59.2]}
2... Nc6 {[%clk 0:02:59.7]} 3. Bc4 {[%clk 0:02:58.8]} 3... Bc5 {[%clk 0:02:56]}
4. Nc3 {[%clk 0:02:57.3]} 4... Nf6 {[%clk 0:02:55.4]} 5. d3 {[%clk 0:02:57.4]}
5... O-O {[%clk 0:02:53.1]} 6. O-O {[%clk 0:02:56.2]} 6... a6 {[%clk 0:02:52.5]}
7. a4 {[%clk 0:02:55.8]} 7... d6 {[%clk 0:02:51.8]} 8. Ne2 {[%clk 0:02:55.3]}
8... Be6 {[%clk 0:02:51.7]} 9. Ng3 {[%clk 0:02:54.6]} 9... h6 {[%clk 0:02:47.2]}
10. c3 {[%clk 0:02:52.5]} 10... Ba7 {[%clk 0:02:37.6]} 11. a5 {[%clk 0:02:51.2]}
11... Qd7 {[%clk 0:02:34.5]} 12. Qb3 {[%clk 0:02:31.8]} 12... Rab8 {[%clk
0:02:32.4]} 13. Be3 {[%clk 0:02:27.5]} 13... Ng4 {[%clk 0:02:27]} 14. Bxa7
{[%clk 0:02:25.8]} 14... Nxa7 {[%clk 0:02:27.9]} 15. Bxe6 {[%clk 0:02:19.9]}
15... fxe6 {[%clk 0:02:26.7]} 16. d4 {[%clk 0:02:16.5]} 16... exd4 {[%clk
0:02:19.1]} 17. Nxd4 {[%clk 0:01:55.8]} 17... Rfe8 {[%clk 0:01:52.8]} 18. h3
{[%clk 0:01:50.6]} 18... Nf6 {[%clk 0:01:50.2]} 19. f4 {[%clk 0:01:49]} 19...
Kh8 {[%clk 0:01:43.9]} 20. e5 {[%clk 0:01:40.6]} 20... Nh7 {[%clk 0:01:35]} 21.
Qc2 {[%clk 0:01:21.7]} 21... Nc6 {[%clk 0:01:23.3]} 22. Qg6 {[%clk 0:01:11.2]}
22... dxe5 {[%clk 0:01:05]} 23. Nxc6 {[%clk 0:00:59.5]} 23... Qxc6 {[%clk
0:01:03.3]} 24. fxe5 {[%clk 0:00:59.2]} 24... Qc5+ {[%clk 0:01:02.4]} 25. Kh1
{[%clk 0:00:55.7]} 25... Qxe5 {[%clk 0:01:01.1]} 26. Rae1 {[%clk 0:00:55.4]}
26... Qg5 {[%clk 0:00:48.9]} 27. Qxg5 {[%clk 0:00:54.9]} 27... Nxg5 {[%clk
0:00:48.2]} 28. h4 {[%clk 0:00:54.6]} 28... Nh7 {[%clk 0:00:47.2]} 29. Rf7
{[%clk 0:00:54.7]} 29... Rbc8 {[%clk 0:00:42.3]} 30. Nh5 {[%clk 0:00:54.4]}
30... g6 {[%clk 0:00:34]} 31. Ng7 {[%clk 0:00:53.4]} 31... Kg8 {[%clk
0:00:30.8]} 32. Rd7 {[%clk 0:00:48.2]} 32... Red8 {[%clk 0:00:24.2]} 33. Rxd8+
{[%clk 0:00:47.2]} 33... Rxd8 {[%clk 0:00:25.1]} 34. Nxe6 {[%clk 0:00:46.8]}
34... Re8 {[%clk 0:00:25.4]} 35. Re4 {[%clk 0:00:43.9]} 35... Kf7 {[%clk
0:00:23.8]} 36. Nc5 {[%clk 0:00:42.8]} 36... Rxe4 {[%clk 0:00:23.4]} 37. Nxe4
{[%clk 0:00:43.7]} 37... b6 {[%clk 0:00:21.3]} 38. Kg1 {[%clk 0:00:41]} 38...
Ke6 {[%clk 0:00:21.4]} 39. Kf2 {[%clk 0:00:37.3]} 39... Kd5 {[%clk 0:00:20.6]}
40. Ke3 {[%clk 0:00:37.5]} 40... bxa5 {[%clk 0:00:18.9]} 41. Kd3 {[%clk
0:00:37.1]} 41... c6 {[%clk 0:00:15.1]} 42. c4+ {[%clk 0:00:35.2]} 42... Ke5
{[%clk 0:00:13.3]} 43. Nc5 {[%clk 0:00:35.9]} 43... Kf4 {[%clk 0:00:13.2]} 44.
Nxa6 {[%clk 0:00:34.9]} 44... Kg3 {[%clk 0:00:13.7]} 45. Nb8 {[%clk 0:00:35]}
45... c5 {[%clk 0:00:10.6]} 46. Nd7 {[%clk 0:00:34.9]} 46... Kxg2 {[%clk
0:00:09.6]} 47. Nxc5 {[%clk 0:00:35.2]} 47... g5 {[%clk 0:00:06.3]} 48. hxg5
{[%clk 0:00:33.6]} 48... hxg5 {[%clk 0:00:07.2]} 49. Nd7 {[%clk 0:00:32.9]}
49... g4 {[%clk 0:00:06.4]} 50. c5 {[%clk 0:00:33.4]} 50... Ng5 {[%clk
0:00:05.4]} 51. Nf6 {[%clk 0:00:29.2]} 51... g3 {[%clk 0:00:04.8]} 52. Nh5
{[%clk 0:00:29.3]} 52... Ne6 {[%clk 0:00:04.3]} 53. c6 {[%clk 0:00:27.5]} 53...
Kf3 {[%clk 0:00:04.6]} 54. Nxg3 {[%clk 0:00:24.3]} 54... Kxg3 {[%clk 0:00:05.5]}
55. Kc4 {[%clk 0:00:24.3]} 55... Kf4 {[%clk 0:00:04.2]} 56. Kd5 {[%clk
0:00:24.8]} 56... Nc7+ {[%clk 0:00:03.5]} 57. Kd6 {[%clk 0:00:24.9]} 57... Nb5+
{[%clk 0:00:03.5]} 58. Kc5 {[%clk 0:00:25.1]} 58... Nc7 {[%clk 0:00:03.8]} 59.
Kb6 {[%clk 0:00:25.5]} 59... Ne6 {[%clk 0:00:04]} 60. c7 {[%clk 0:00:21.7]}
60... Nxc7 {[%clk 0:00:03.3]} 61. Kxc7 {[%clk 0:00:22.6]} 61... a4 {[%clk
0:00:02.1]} 62. Kb6 {[%clk 0:00:22.7]} 62... Ke5 {[%clk 0:00:03]} 63. Kb5 {[%clk
0:00:22.2]} 1-0

[Event "*** Titled Tuesday Blitz"]
[Site "Chess.com"]
[Date "2020.12.29"]
[Round "1"]
[White "FishThatRoared"]
[Black "FontVella8"]
[Result "1/2-1/2"]
[WhiteElo "2108"]
[BlackElo "2495"]
[TimeControl "180+1"]
[EndTime "10:08:15 PST"]
[Termination "Game drawn by agreement"]

1. e4 {[%clk 0:03:00.3]} 1... e6 {[%clk 0:02:59.7]} 2. d3 {[%clk 0:02:59.8]}
2... d5 {[%clk 0:02:59.9]} 3. Nd2 {[%clk 0:03:00.7]} 3... f5 {[%clk 0:03:00.2]}
4. Ngf3 {[%clk 0:02:45.6]} 4... Nf6 {[%clk 0:02:59.6]} 5. g3 {[%clk 0:02:29.1]}
5... g6 {[%clk 0:02:57.5]} 6. Bg2 {[%clk 0:02:27.9]} 6... Bg7 {[%clk 0:02:57.7]}
7. O-O {[%clk 0:02:27.9]} 7... O-O {[%clk 0:02:57.6]} 8. Qe2 {[%clk 0:02:21.1]}
8... c5 {[%clk 0:02:56.6]} 9. c3 {[%clk 0:02:19.1]} 9... Nc6 {[%clk 0:02:56.1]}
10. a3 {[%clk 0:02:14.8]} 10... b6 {[%clk 0:02:56.2]} 11. e5 {[%clk 0:02:12.1]}
11... Nd7 {[%clk 0:02:55.4]} 12. d4 {[%clk 0:02:12.5]} 12... a5 {[%clk
0:02:54.8]} 13. Re1 {[%clk 0:02:10.5]} 13... Ba6 {[%clk 0:02:54.2]} 14. Qd1
{[%clk 0:02:10.3]} 14... cxd4 {[%clk 0:02:53.2]} 15. cxd4 {[%clk 0:02:09.7]}
15... Rc8 {[%clk 0:02:53.3]} 16. Nf1 {[%clk 0:02:06.3]} 16... b5 {[%clk
0:02:50.8]} 17. h4 {[%clk 0:02:05.2]} 17... b4 {[%clk 0:02:50]} 18. h5 {[%clk
0:01:55.2]} 18... Re8 {[%clk 0:02:36.6]} 19. hxg6 {[%clk 0:01:53.8]} 19... hxg6
{[%clk 0:02:36.6]} 20. g4 {[%clk 0:01:43.8]} 20... Qb6 {[%clk 0:02:35.2]} 21.
Be3 {[%clk 0:01:41.1]} 21... Nf8 {[%clk 0:02:15.1]} 22. Ng3 {[%clk 0:01:33.1]}
22... Rc7 {[%clk 0:02:06.7]} 23. Qd2 {[%clk 0:01:26]} 23... Rec8 {[%clk
0:02:02.7]} 24. Rac1 {[%clk 0:01:23.4]} 24... Ne7 {[%clk 0:01:57.8]} 25. Rc5
{[%clk 0:01:21.5]} 25... Nd7 {[%clk 0:01:53.8]} 26. Rxc7 {[%clk 0:01:17.3]}
26... Rxc7 {[%clk 0:01:54.2]} 27. gxf5 {[%clk 0:01:16.2]} 27... Nxf5 {[%clk
0:01:47.2]} 28. Nxf5 {[%clk 0:01:15.1]} 28... gxf5 {[%clk 0:01:46.4]} 29. Rc1
{[%clk 0:01:13.8]} 29... Nf8 {[%clk 0:01:45.8]} 30. Rxc7 {[%clk 0:01:09.9]}
30... Qxc7 {[%clk 0:01:45.4]} 31. axb4 {[%clk 0:01:10.3]} 31... axb4 {[%clk
0:01:45.3]} 32. Qxb4 {[%clk 0:01:10.4]} 32... Bc4 {[%clk 0:01:40.1]} 33. Qd6
{[%clk 0:01:09.2]} 33... Qxd6 {[%clk 0:01:30.9]} 34. exd6 {[%clk 0:01:08.8]}
34... Bd3 {[%clk 0:01:29.7]} 35. Bf1 {[%clk 0:01:02.5]} 35... Be4 {[%clk
0:01:22.8]} 36. Ng5 {[%clk 0:01:02]} 36... Nd7 {[%clk 0:01:16.5]} 37. Bb5 {[%clk
0:01:01]} 37... Nf8 {[%clk 0:01:13.1]} 38. Be8 {[%clk 0:00:49.7]} 38... Bf6
{[%clk 0:01:09.5]} 39. Kf1 {[%clk 0:00:38.2]} 39... Bd3+ {[%clk 0:01:00.5]} 40.
Ke1 {[%clk 0:00:37.6]} 40... f4 {[%clk 0:00:52]} 41. Bxf4 {[%clk 0:00:37.1]}
41... Bxd4 {[%clk 0:00:52.2]} 42. Bf7+ {[%clk 0:00:32.8]} 42... Kg7 {[%clk
0:00:51]} 43. Bxe6 {[%clk 0:00:28.6]} 43... Bxb2 {[%clk 0:00:45]} 44. d7 {[%clk
0:00:23.1]} 44... Bc3+ {[%clk 0:00:42.7]} 45. Kd1 {[%clk 0:00:22]} 45... Ba5
{[%clk 0:00:41.9]} 46. Be5+ {[%clk 0:00:19.8]} 46... Kg6 {[%clk 0:00:40.1]} 47.
Nf7 {[%clk 0:00:18.3]} 47... Nxe6 {[%clk 0:00:34]} 48. Nd6 {[%clk 0:00:12.3]}
48... Bc7 {[%clk 0:00:25]} 49. Nf7 {[%clk 0:00:08.9]} 49... Bd8 {[%clk
0:00:15.2]} 50. Nxd8 {[%clk 0:00:05.8]} 50... Nxd8 {[%clk 0:00:14.7]} 51. Bc7
{[%clk 0:00:06.7]} 51... Nc6 {[%clk 0:00:09.9]} 52. d8=Q {[%clk 0:00:06.4]}
52... Nxd8 {[%clk 0:00:09.9]} 53. Bxd8 {[%clk 0:00:07.3]} 53... Kf5 {[%clk
0:00:10.2]} 54. Kd2 {[%clk 0:00:07.5]} 54... Ke4 {[%clk 0:00:10.6]} 55. Bb6
{[%clk 0:00:07.7]} 55... Bc4 {[%clk 0:00:10.4]} 56. Kc3 {[%clk 0:00:06]} 56...
Kf3 {[%clk 0:00:11.3]} 57. Bd4 {[%clk 0:00:06.1]} 57... Ke2 {[%clk 0:00:11.4]}
58. Bc5 {[%clk 0:00:05.2]} 58... Kf3 {[%clk 0:00:10.6]} 59. Bd4 {[%clk
0:00:05.7]} 59... Ke4 {[%clk 0:00:11.5]} 60. Bc5 {[%clk 0:00:06.3]} 60... Be2
{[%clk 0:00:11.7]} 61. Bd4 {[%clk 0:00:06.9]} 61... Bf3 {[%clk 0:00:12.5]} 62.
Bc5 {[%clk 0:00:07.5]} 62... Bg4 {[%clk 0:00:13.1]} 63. Bd4 {[%clk 0:00:08.2]}
63... Bd7 {[%clk 0:00:13.7]} 64. Bc5 {[%clk 0:00:09.1]} 64... Bb5 {[%clk
0:00:13.3]} 65. Bd4 {[%clk 0:00:10]} 65... Bc4 {[%clk 0:00:13.1]} 66. Bc5 {[%clk
0:00:10.9]} 1/2-1/2

[Event "*** Titled Tuesday Blitz"]
[Site "Chess.com"]
[Date "2020.12.29"]
[Round "1"]
[White "AttilaTurzo"]
[Black "OparinGrigoriy"]
[Result "1-0"]
[WhiteElo "2486"]
[BlackElo "2965"]
[TimeControl "180+1"]
[EndTime "10:08:16 PST"]
[Termination "AttilaTurzo won by checkmate"]

1. d4 {[%clk 0:02:59.1]} 1... f5 {[%clk 0:02:59.1]} 2. g3 {[%clk 0:02:58.5]}
2... Nf6 {[%clk 0:02:58.2]} 3. Bg2 {[%clk 0:02:58.6]} 3... g6 {[%clk 0:02:58.6]}
4. Nf3 {[%clk 0:02:59.1]} 4... Bg7 {[%clk 0:02:59]} 5. O-O {[%clk 0:02:59.7]}
5... d6 {[%clk 0:02:59.6]} 6. b3 {[%clk 0:03:00.1]} 6... O-O {[%clk 0:02:59.8]}
7. Bb2 {[%clk 0:03:00.7]} 7... a5 {[%clk 0:03:00.1]} 8. Nbd2 {[%clk 0:02:56.8]}
8... c6 {[%clk 0:03:00.4]} 9. c4 {[%clk 0:02:55.7]} 9... Na6 {[%clk 0:02:59.6]}
10. Qc2 {[%clk 0:02:53.6]} 10... Qc7 {[%clk 0:02:59.4]} 11. a3 {[%clk
0:02:45.6]} 11... Bd7 {[%clk 0:02:56.5]} 12. e4 {[%clk 0:02:43.6]} 12... fxe4
{[%clk 0:02:51.8]} 13. Nxe4 {[%clk 0:02:44.5]} 13... Rae8 {[%clk 0:02:50.7]} 14.
Rae1 {[%clk 0:02:30]} 14... b5 {[%clk 0:02:37.8]} 15. Nfd2 {[%clk 0:02:07.3]}
15... b4 {[%clk 0:02:35.1]} 16. a4 {[%clk 0:01:58.2]} 16... Qc8 {[%clk
0:02:30.3]} 17. f4 {[%clk 0:01:55.5]} 17... Bf5 {[%clk 0:02:26]} 18. Qc1 {[%clk
0:01:51]} 18... Nxe4 {[%clk 0:02:24.5]} 19. Nxe4 {[%clk 0:01:49.7]} 19... d5
{[%clk 0:02:21.5]} 20. Ng5 {[%clk 0:01:14.7]} 20... e6 {[%clk 0:02:21.4]} 21. c5
{[%clk 0:01:13.2]} 21... Nb8 {[%clk 0:02:18.2]} 22. h3 {[%clk 0:01:04]} 22... h6
{[%clk 0:02:15.8]} 23. Nf3 {[%clk 0:01:02]} 23... Nd7 {[%clk 0:02:15.3]} 24. g4
{[%clk 0:00:57.9]} 24... Be4 {[%clk 0:02:10.6]} 25. Ne5 {[%clk 0:00:57.5]} 25...
Bxg2 {[%clk 0:02:03.9]} 26. Kxg2 {[%clk 0:00:56.8]} 26... Nxe5 {[%clk
0:02:03.9]} 27. dxe5 {[%clk 0:00:50.1]} 27... Rf7 {[%clk 0:02:03.9]} 28. Bd4
{[%clk 0:00:41.6]} 28... Ref8 {[%clk 0:02:03.8]} 29. Rf2 {[%clk 0:00:37.8]}
29... Qa6 {[%clk 0:02:03.3]} 30. Qe3 {[%clk 0:00:36.3]} 30... g5 {[%clk
0:02:01.5]} 31. f5 {[%clk 0:00:24]} 31... exf5 {[%clk 0:01:51.4]} 32. e6 {[%clk
0:00:23.2]} 32... Re7 {[%clk 0:01:51.6]} 33. gxf5 {[%clk 0:00:22.8]} 33... Bf6
{[%clk 0:01:50.7]} 34. Bxf6 {[%clk 0:00:21.3]} 34... Rxf6 {[%clk 0:01:51.6]} 35.
Qe5 {[%clk 0:00:21.8]} 35... Kg7 {[%clk 0:01:52]} 36. Qd6 {[%clk 0:00:21.3]}
36... Qb7 {[%clk 0:01:51.3]} 37. Kg1 {[%clk 0:00:18.8]} 37... Kf8 {[%clk
0:01:44]} 38. Re5 {[%clk 0:00:18.4]} 38... Qc7 {[%clk 0:01:40]} 39. Rg2 {[%clk
0:00:16.4]} 39... Ke8 {[%clk 0:01:22.4]} 40. h4 {[%clk 0:00:15.6]} 40... Rg7
{[%clk 0:01:22.6]} 41. hxg5 {[%clk 0:00:13.6]} 41... hxg5 {[%clk 0:01:23.5]} 42.
Rh2 {[%clk 0:00:10.7]} 42... Rf8 {[%clk 0:01:08.1]} 43. f6 {[%clk 0:00:08.4]}
43... Qxd6 {[%clk 0:01:02.9]} 44. cxd6 {[%clk 0:00:06.6]} 44... Rb7 {[%clk
0:00:59.5]} 45. f7+ {[%clk 0:00:06.3]} 45... Rbxf7 {[%clk 0:00:55.7]} 46. exf7+
{[%clk 0:00:07.2]} 46... Kd7 {[%clk 0:00:56.3]} 47. Rhe2 {[%clk 0:00:06.9]}
47... Kxd6 {[%clk 0:00:55.9]} 48. Re7 {[%clk 0:00:07.8]} 48... Kc5 {[%clk
0:00:50]} 49. Ra7 {[%clk 0:00:08.2]} 49... Kd4 {[%clk 0:00:50.3]} 50. Re8 {[%clk
0:00:08.7]} 50... Rxf7 {[%clk 0:00:50.5]} 51. Rxf7 {[%clk 0:00:08.6]} 51... c5
{[%clk 0:00:51.4]} 52. Rc7 {[%clk 0:00:08.4]} 52... c4 {[%clk 0:00:49]} 53. Rd8
{[%clk 0:00:06.4]} 53... cxb3 {[%clk 0:00:46.1]} 54. Rcd7 {[%clk 0:00:06.8]}
54... b2 {[%clk 0:00:45.7]} 55. Rxd5+ {[%clk 0:00:07.7]} 55... Kc3 {[%clk
0:00:46.1]} 56. Rd3+ {[%clk 0:00:07.8]} 56... Kc2 {[%clk 0:00:45.9]} 57. Rd2+
{[%clk 0:00:08]} 57... Kb3 {[%clk 0:00:46.5]} 58. Rd1 {[%clk 0:00:07.6]} 58...
Kxa4 {[%clk 0:00:44]} 59. Ra8 {[%clk 0:00:07.6]} 59... Kb5 {[%clk 0:00:36.7]}
60. Kf2 {[%clk 0:00:07]} 60... a4 {[%clk 0:00:37.1]} 61. Ke2 {[%clk 0:00:06.7]}
61... a3 {[%clk 0:00:24.5]} 62. Kd3 {[%clk 0:00:06.7]} 62... g4 {[%clk
0:00:23.2]} 63. Rb8+ {[%clk 0:00:04.2]} 63... Ka4 {[%clk 0:00:23.5]} 64. Kc4
{[%clk 0:00:04.2]} 64... g3 {[%clk 0:00:21.8]} 65. Ra8# {[%clk 0:00:03.9]} 1-0